bitfinex-derivatives/quotes_SOLF0:USTF0_20250730
["timestamp","ask_amount","ask_price","bid_price","bid_amount"]
[1753845843500,3.16,181.88,181.87,3.18]
[1753845843794,4.61144463,182.0,181.85,3.18]
[1753845843994,3.16,181.98,181.84,117.76]
[1753845844194,3.16,181.96,181.84,120.94]
[1753845844402,5.4986,181.9,181.85,8.6796]
[1753845844698,3.16,181.89,181.86,3.18]
[1753845844898,3.16,181.89,181.85,3.18]
[1753845845095,3.16,181.89,181.84,117.76]
[1753845845494,3.16,181.89,181.84,120.94]
[1753845845695,3.16,181.85,181.84,120.94]
[1753845846905,3.16,181.99,181.85,3.18]
[1753845847096,3.16,181.97,181.85,3.18]
[1753845847395,3.16,181.97,181.86,3.18]
[1753845848396,5.4976,181.93,181.89,5.4984]
[1753845848602,3.16,181.92,181.89,8.6784]
[1753845848897,3.16,181.92,181.89,3.18]
[1753845849200,4.59752149,182.02,181.85,3.18]
[1753845849391,3.16,182.0,181.85,3.18]
[1753845849590,4.59752149,182.02,181.86,3.18]
[1753845849591,3.16,181.98,181.86,3.18]
[1753845849995,3.16,181.98,181.84,117.76]
[1753845849996,3.16,181.98,181.9,5.4983]
[1753845850205,3.16,181.98,181.9,3.18]
[1753845850396,3.16,181.98,181.85,3.18]
[1753845850596,3.16,181.98,181.88,5.4987]
[1753845851305,3.16,181.9,181.87,3.18]
[1753845851501,3.16,181.9,181.85,3.18]
[1753845851799,3.16,181.9,181.86,3.18]
[1753845852008,5.4989,181.89,181.86,3.18]
[1753845852299,17.16813052,182.04,181.84,117.76]
[1753845852300,4.59752149,182.01,181.84,117.76]
[1753845852504,3.16,181.99,181.85,3.18]
[1753845852700,5.4988,181.89,181.85,5.4998]
[1753845852909,3.16,181.88,181.86,3.18]
[1753845853102,3.16,181.87,181.86,3.18]
[1753845853711,5.499,181.88,181.84,123.2601]
[1753845853898,3.16,181.86,181.84,123.2601]
[1753845854102,3.16,181.86,181.84,117.76]
[1753845854405,3.16,181.85,181.84,117.76]
[1753845854604,3.16,181.85,181.83,3.18]
[1753845854906,3.16,181.85,181.84,3.18]
[1753845855406,3.16,181.85,181.83,8.6802]
[1753845855604,3.16,181.85,181.82,3.18]
[1753845856302,3.16,181.85,181.81,3.18]
[1753845856609,3.16,181.85,181.81,8.6811]
[1753845856807,3.16,181.96,181.82,3.18]
[1753845857006,3.16,181.94,181.82,3.18]
[1753845857207,3.16,181.85,181.84,3.18]
[1753845857409,3.16,181.84,181.8,118.4]
[1753845857606,3.16,181.84,181.83,3.18]
[1753845858003,3.16,181.93,181.81,3.18]
[1753845859109,5.4995,181.87,181.83,5.5003]
[1753845859312,3.16,181.86,181.84,3.18]
[1753845859606,3.16,181.86,181.85,3.18]
[1753845860106,3.16,181.85,181.83,8.6803]
[1753845860411,3.16,181.84,181.83,8.6803]
[1753845862716,3.18,181.84,181.79,3.18]
[1753845863105,5.501,181.82,181.79,3.18]
[1753845863305,5.501,181.82,181.75,118.38]
[1753845863306,3.18,181.8,181.76,3.18]
[1753845863501,3.18,181.92,181.76,3.18]
[1753845863705,3.18,181.9,181.76,3.18]
[1753845863901,4.01088252,181.89,181.76,3.18]
[1753845864211,3.18,181.88,181.76,3.18]
[1753845864714,3.18,181.79,181.77,5.5021]
[1753845864908,3.18,181.79,181.77,8.6821]
[1753845865216,3.18,181.79,181.78,3.18]
[1753845866102,4.59752149,181.92,181.77,5.5021]
[1753845866307,3.18,181.9,181.76,3.18]
[1753845866507,3.18,181.88,181.76,3.18]
[1753845866707,3.18,181.86,181.76,3.18]
[1753845866908,3.18,181.79,181.77,3.18]
[1753845867114,3.18,181.79,181.76,8.6825]
[1753845867411,3.18,181.78,181.76,3.18]
[1753845867608,3.18,181.78,181.77,3.18]
[1753845868012,3.18,181.81,181.78,3.18]
[1753845869014,3.18,181.9,181.79,3.18]
[1753845869314,3.18,181.88,181.79,3.18]
[1753845869514,3.18,181.86,181.79,3.18]
[1753845870614,15.59372149,181.91,181.79,3.18]
[1753845870809,3.18,181.89,181.8,3.18]
[1753845871010,3.18,181.87,181.8,3.18]
[1753845871319,3.18,181.86,181.76,3.18]
[1753845871612,130.17943052,181.94,181.76,3.18]
[1753845871613,3.18,181.88,181.76,3.18]
[1753845871809,3.18,181.89,181.88,3.18]
[1753845872012,3.18,181.94,181.89,3.18]
[1753845872209,3.18,181.94,181.82,118.36]
[1753845872210,3.18,181.92,181.85,3.18]
[1753845872816,5.4989,181.89,181.85,5.4998]
[1753845873011,3.18,181.87,181.86,3.18]
[1753845873718,3.18,181.86,181.84,8.6801]
[1753845874216,3.18,181.86,181.85,5.4999]
[1753845874514,3.18,181.86,181.83,3.18]
[1753845875209,3.18,181.86,181.84,3.18]
[1753845875416,3.18,181.85,181.84,3.18]
[1753845877416,3.18,181.87,181.85,3.18]
[1753845877716,3.18,181.86,181.85,3.18]
[1753845878416,8.6791,181.88,181.85,3.18]
[1753845878716,3.18,181.87,181.86,3.18]
[1753845879717,3.18,181.85,181.84,8.6802]
[1753845879912,3.18,181.86,181.85,3.18]
[1753845881514,3.18,181.85,181.84,3.18]
[1753845881812,3.18,181.85,181.82,3.18]
[1753845882013,7.78315328,181.9,181.79,3.18]
[1753845882209,3.18,181.83,181.8,3.18]
[1753845882519,3.18,181.83,181.79,8.6816]
[1753845882717,3.18,181.83,181.79,5.5016]
[1753845883217,3.18,181.82,181.81,3.18]
[1753845883808,4.60315328,181.88,181.79,8.6816]
[1753845884016,3.18,181.81,181.79,8.6816]
[1753845884209,3.18,181.81,181.8,3.18]
[1753845885618,3.18,181.81,181.8,8.6814]
[1753845888619,3.18,181.82,181.81,8.681]
[1753845888825,3.18,181.82,181.81,3.18]
[1753845889324,3.18,181.82,181.8,5.5013]
[1753845889524,3.18,181.82,181.8,8.6813]
[1753845891230,3.18,181.81,181.78,118.28]
[1753845891721,8.6813,181.81,181.78,118.28]
[1753845891923,3.12,181.8,181.78,118.28]
[1753845892121,3.12,181.8,181.74,118.14]
[1753845892425,3.12,181.8,181.74,121.3]
[1753845893326,5.502,181.78,181.75,5.5028]
[1753845893524,3.12,181.76,181.75,8.6628]
[1753845895821,3.12,181.76,181.74,118.14]
[1753845896428,8.6228,181.76,181.74,118.14]
[1753845896629,3.12,181.75,181.74,118.14]
[1753845896824,3.12,181.85,181.73,3.16]
[1753845897024,4.60315328,181.86,181.73,3.16]
[1753845897025,3.12,181.75,181.73,3.16]
[1753845897224,3.12,181.74,181.73,3.16]
[1753845898929,3.12,181.74,181.73,8.6635]
[1753845900631,3.12,181.74,181.72,3.16]
[1753845900830,3.12,181.74,181.71,118.1]
[1753845901131,3.12,181.73,181.71,121.26]
[1753845901331,3.12,181.72,181.71,121.26]
[1753845902330,3.12,181.72,181.71,126.7641]
[1753845903222,3.12,181.74,181.72,5.5038]
[1753845903423,3.12,181.82,181.72,3.16]
[1753845903629,3.12,181.76,181.72,3.16]
[1753845903931,3.12,181.75,181.73,5.5033]
[1753845904123,3.12,181.75,181.74,3.16]
[1753845904529,3.12,181.75,181.73,5.5033]
[1753845904723,3.12,181.75,181.72,5.5037]
[1753845905836,3.12,181.75,181.72,8.6637]
[1753845906222,8.623,181.75,181.72,8.6637]
[1753845906431,3.12,181.74,181.72,8.6637]
[1753845906631,5.503,181.75,181.72,8.6637]
[1753845906828,3.12,181.73,181.72,8.6637]
[1753845907130,3.12,181.74,181.73,8.6633]
[1753845908328,3.12,181.75,181.73,8.6633]
[1753845908532,3.12,181.74,181.73,8.6633]
[1753845911034,3.12,181.74,181.73,3.16]
[1753845912836,3.12,181.74,181.73,8.6635]
[1753845913742,5.5026,181.76,181.68,117.98]
[1753845913743,3.12,181.77,181.76,5.5024]
[1753845913934,8.6219,181.79,181.76,8.6624]
[1753845914237,3.12,181.78,181.77,3.16]
[1753845914436,8.622,181.78,181.77,3.16]
[1753845914731,3.12,181.77,181.76,3.16]
[1753845914937,3.12,181.77,181.75,5.5029]
[1753845915140,3.12,181.76,181.75,8.6629]
[1753845917442,5.5018,181.79,181.76,5.5025]
[1753845917639,3.12,181.78,181.77,3.16]
[1753845918940,3.12,181.77,181.75,8.6628]
[1753845919140,5.502,181.78,181.75,8.6628]
[1753845919445,3.12,181.76,181.75,5.5028]
[1753845919941,3.12,181.76,181.75,8.6628]
[1753845922144,3.07,181.8,181.77,3.03]
[1753845922337,3.07,181.81,181.77,3.03]
[1753845922538,3.07,181.86,181.77,3.03]
[1753845922742,3.07,181.82,181.77,3.03]
[1753845922939,3.07,181.81,181.77,3.03]
[1753845923138,5.5001,181.85,181.82,5.5008]
[1753845923348,3.07,181.87,181.72,3.03]
[1753845923542,4.04194242,181.86,181.77,3.03]
[1753845923749,3.07,181.87,181.84,3.03]
[1753845924248,3.07,181.87,181.84,8.5301]
[1753845925055,3.07,181.87,181.84,3.03]
[1753845925347,3.07,181.91,181.77,3.03]
[1753845925548,3.07,181.89,181.77,3.03]
[1753845925739,3.07,181.86,181.82,8.5307]
[1753845927153,3.07,181.86,181.77,3.03]
[1753845927944,3.07,181.86,181.8,3.03]
[1753845928949,3.07,181.86,181.83,5.5004]
[1753845929343,3.07,181.86,181.83,8.5304]
[1753845929652,3.07,181.87,181.85,3.03]
[1753845929849,3.07,181.86,181.85,3.03]
[1753845930248,3.07,181.86,181.84,5.5001]
[1753845930451,3.07,181.86,181.84,8.5301]
[1753845930852,3.07,181.85,181.84,8.5301]
[1753845933756,3.07,181.85,181.81,3.03]
[1753845934056,3.07,181.85,181.77,3.03]
[1753845934252,3.07,181.85,181.83,5.5003]
[1753845934557,3.07,181.84,181.83,8.5303]
[1753845936755,3.07,181.84,181.83,5.5003]
[1753845937850,3.07,181.84,181.82,5.5007]
[1753845939454,3.07,181.84,181.77,3.03]
[1753845940860,3.07,181.84,181.83,5.5005]
[1753845941055,3.07,181.84,181.83,8.5305]
[1753845941258,3.07,181.84,181.76,117.8]
[1753845941259,5.4992,181.88,181.76,117.8]
[1753845941456,3.07,181.85,181.84,3.03]
[1753845941754,3.07,181.85,181.84,8.5299]
[1753845942961,3.07,181.87,181.86,8.5296]
[1753845943252,3.07,181.93,181.77,19.58]
[1753845943454,3.07,181.93,181.9,5.4982]
[1753845943658,3.07,181.93,181.79,11.0032]
[1753845943958,3.07,181.93,181.8,3.03]
[1753845944252,3.07,181.93,181.89,5.4986]
[1753845944459,3.07,181.92,181.89,5.4986]
[1753845947159,3.07,181.92,181.9,5.4983]
[1753845947356,3.07,181.91,181.9,8.5283]
[1753845947561,3.07,181.93,181.81,3.03]
[1753845947756,5.4963,181.97,181.92,8.5277]
[1753845947959,3.07,181.93,181.92,8.5277]
[1753845948659,3.07,181.93,181.91,5.498]
[1753845949056,3.07,181.93,181.89,5.4984]
[1753845949361,3.07,181.93,181.89,3.03]
[1753845949659,3.07,181.92,181.88,5.4988]
[1753845950361,3.07,181.91,181.87,5.4992]
[1753845950564,3.07,181.91,181.82,3.03]
[1753845950757,5.4996,181.87,181.8,3.03]
[1753845950953,3.07,181.86,181.81,3.03]
[1753845951565,5.4993,181.87,181.83,5.5003]
[1753845951763,2.99,181.95,181.81,2.93]
[1753845951966,2.99,181.93,181.81,2.93]
[1753845952159,2.99,181.84,181.79,2.93]
[1753845952662,2.99,181.84,181.77,2.93]
[1753845952865,5.5007,181.83,181.79,5.5015]
[1753845953060,2.99,181.82,181.79,5.5015]
[1753845954664,2.99,181.81,181.77,2.93]
[1753845955865,8.4913,181.81,181.76,5.5026]
[1753845956061,2.99,181.8,181.75,2.93]
[1753845956264,2.99,181.79,181.75,2.93]
[1753845956670,2.99,181.79,181.78,5.5018]
[1753845958767,2.99,181.79,181.76,5.5024]
[1753845959268,2.99,181.79,181.74,117.72]
[1753845959469,2.99,181.79,181.74,120.65]
[1753845960060,2.99,181.79,181.64,9.25360043]
[1753845960265,5.5024,181.77,181.74,5.5032]
[1753845960467,2.99,181.76,181.74,5.5032]
[1753845961673,2.99,181.75,181.74,8.4332]
[1753845961872,2.99,181.75,181.68,2.93]
[1753845962766,2.99,181.76,181.73,8.4334]
[1753845962971,2.99,181.76,181.73,5.5034]
[1753845963168,2.99,181.77,181.74,8.433]
[1753845963365,2.99,181.77,181.75,2.93]
[1753845963566,2.99,181.76,181.75,2.93]
[1753845964068,2.99,181.79,181.75,2.93]
[1753845964262,4.60315328,181.86,181.75,2.93]
[1753845964468,2.99,181.84,181.75,2.93]
[1753845964770,2.99,181.82,181.76,8.4325]
[1753845965367,4.60315328,181.86,181.76,8.4325]
[1753845965368,2.99,181.8,181.76,8.4325]
[1753845966978,2.99,181.8,181.67,117.74]
[1753845967275,2.99,181.79,181.78,2.93]
[1753845968473,2.99,181.79,181.67,117.74]
[1753845968474,2.99,181.79,181.76,2.93]
[1753845970881,2.99,181.79,181.75,5.5026]
[1753845971082,2.99,181.78,181.77,2.93]
[1753845971481,5.5011,181.81,181.77,2.93]
[1753845971679,2.99,181.8,181.78,2.93]
[1753845971882,2.99,181.8,181.79,2.93]
[1753845972383,2.99,181.8,181.77,5.5021]
[1753845972573,5.5011,181.81,181.77,5.5021]
[1753845972777,2.99,181.79,181.78,2.93]
[1753845973383,2.99,181.83,181.78,2.93]
[1753845973882,2.99,181.83,181.8,2.93]
[1753845974585,2.99,181.82,181.8,2.93]
[1753845974782,2.99,181.81,181.8,2.93]
[1753845975882,4.60315328,181.9,181.8,2.93]
[1753845976079,2.99,181.82,181.8,2.93]
[1753845976281,2.99,181.82,181.81,2.93]
[1753845976983,2.99,181.82,181.79,2.93]
[1753845977185,2.99,181.82,181.7,2.93]
[1753845977979,2.99,181.89,181.7,2.93]
[1753845978176,2.99,181.87,181.7,2.93]
[1753845978396,2.99,181.85,181.7,2.93]
[1753845979081,5.5008,181.83,181.78,5.5018]
[1753845979275,2.99,181.82,181.79,2.93]
[1753845979683,2.99,181.81,181.79,2.93]
[1753845980885,2.99,181.81,181.78,8.4318]
[1753845981086,2.99,181.8,181.78,8.4318]
[1753845981778,3.1,181.79,181.78,8.4318]
[1753845983983,4.60315328,181.9,181.69,11.0094]
[1753845983984,3.1,181.78,181.69,11.0094]
[1753845984178,3.1,181.78,181.7,3.12]
[1753845984484,3.1,181.78,181.74,5.503]
[1753845984681,3.1,181.78,181.69,3.12]
[1753845986284,5.5031,181.75,181.72,5.5038]
[1753845986592,5.5031,181.75,181.72,8.6238]
[1753845986785,5.5031,181.75,181.68,369.84]
[1753845986786,3.1,181.73,181.71,5.504]
[1753845987186,3.1,181.72,181.71,5.504]
[1753845987987,3.1,181.73,181.7,8.6243]
[1753845988688,3.1,181.73,181.71,5.5041]
[1753845989593,5.503,181.75,181.72,5.5037]
[1753845990192,5.5026,181.76,181.72,5.5038]
[1753845990383,3.1,181.75,181.73,3.12]
[1753845990585,3.1,181.74,181.72,5.5038]
[1753845990788,3.1,181.73,181.72,8.6238]
[1753845991693,3.1,181.73,181.68,369.84]
[1753845991694,3.1,181.73,181.71,3.12]
[1753845991888,3.1,181.73,181.68,369.84]
[1753845992188,5.5043,181.71,181.67,117.74]
[1753845992394,4.60315328,181.8,181.67,117.74]
[1753845992692,3.1,181.78,181.67,117.74]
[1753845992894,3.1,181.68,181.67,117.74]
[1753845993699,8.605,181.68,181.66,3.12]
[1753845993887,4.60315328,181.79,181.62,117.76]
[1753845994091,3.1,181.66,181.63,3.12]
[1753845994398,3.1,181.77,181.63,3.12]
[1753845994588,3.1,181.76,181.63,3.12]
[1753845994790,4.0149948,181.75,181.63,3.12]
[1753845994988,3.1,181.73,181.63,3.12]
[1753845995297,5.5051,181.68,181.64,5.506]
[1753845995492,3.1,181.67,181.65,3.12]
[1753845995692,3.1,181.66,181.65,3.12]
[1753845996909,3.1,181.66,181.63,8.6265]
[1753845997301,3.1,181.66,181.64,3.12]
[1753845998106,3.1,181.65,181.64,8.6261]
[1753845999705,5.5051,181.68,181.65,5.5058]
[1753846000012,3.1,181.75,181.66,3.12]
[1753846000307,3.1,181.73,181.67,5.5051]
[1753846000513,5.5045,181.7,181.67,8.6251]
[1753846000707,3.1,181.69,181.66,3.12]
[1753846001011,3.1,181.69,181.65,8.6258]
[1753846001809,5.505,181.69,181.65,8.6258]
[1753846002108,3.1,181.68,181.65,8.6258]
[1753846003005,5.5045,181.7,181.66,5.5055]
[1753846003211,3.1,181.76,181.63,3.12]
[1753846003511,5.5044,181.7,181.66,5.5054]
[1753846003701,3.1,181.68,181.67,3.12]
[1753846004706,4.60315328,181.77,181.67,3.12]
[1753846004707,3.1,181.7,181.67,3.12]
[1753846004906,3.1,181.77,181.67,3.12]
[1753846005104,3.1,181.75,181.67,3.12]
[1753846006005,3.1,181.73,181.71,3.12]
[1753846006204,3.1,181.72,181.71,3.12]
[1753846008611,3.1,181.72,181.7,5.5042]
[1753846009007,3.1,181.72,181.68,8.6247]
[1753846009404,3.1,181.72,181.68,5.5048]
[1753846009603,3.1,181.72,181.69,3.12]
[1753846010299,8.604,181.72,181.69,3.12]
[1753846010504,3.1,181.72,181.69,3.12]
[1753846010910,5.5044,181.7,181.69,3.12]
[1753846011205,3.1,181.69,181.67,3.12]
[1753846011407,3.1,181.69,181.63,3.22]
[1753846012110,3.2,181.68,181.63,3.22]
[1753846014207,3.2,181.68,181.66,5.5054]
[1753846014510,3.2,181.68,181.63,3.22]
[1753846014904,3.2,181.68,181.62,117.76]
[1753846014905,3.2,181.68,181.64,3.22]
[1753846015108,3.2,181.68,181.65,3.22]
[1753846015909,3.2,181.68,181.63,3.22]
[1753846016406,5.5048,181.69,181.63,3.22]
[1753846016612,3.2,181.67,181.66,3.22]
[1753846017913,3.2,181.67,181.66,8.7256]
[1753846018914,3.2,181.67,181.66,3.22]
[1753846019416,3.2,181.67,181.65,8.7258]
[1753846019613,3.2,181.67,181.65,3.22]
[1753846019809,3.2,181.67,181.62,117.76]
[1753846020009,5.5063,181.64,181.62,117.76]
[1753846020206,3.2,181.63,181.6,3.22]
[1753846020409,3.2,181.62,181.61,3.22]
[1753846020814,3.2,181.62,181.61,8.7272]
[1753846021712,3.2,181.62,181.61,3.22]
[1753846022116,3.2,181.62,181.61,8.7272]
[1753846024507,3.2,181.62,181.61,3.22]
[1753846024708,3.2,181.61,181.6,8.7274]
[1753846024912,3.2,181.61,181.58,3.22]
[1753846025513,8.7072,181.61,181.58,5.5078]
[1753846025716,3.2,181.6,181.58,5.5078]
[1753846026014,3.2,181.6,181.57,117.78]
[1753846026617,3.2,181.6,181.57,126.5083]
[1753846028315,3.2,181.6,181.58,5.508]
[1753846029117,5.5071,181.62,181.58,5.508]
[1753846029316,3.2,181.61,181.59,5.5076]
[1753846029515,3.2,181.61,181.6,3.22]
[1753846029714,3.2,181.61,181.59,5.5076]
[1753846029912,3.2,181.61,181.58,8.728]
[1753846030121,3.2,181.6,181.57,117.78]
[1753846030721,3.2,181.7,181.57,123.2882]
[1753846030920,4.0208822,181.69,181.57,123.2882]
[1753846031122,7.2208822,181.68,181.57,123.2882]
[1753846031320,3.2,181.66,181.57,123.2882]
[1753846031622,3.2,181.66,181.57,126.5082]
[1753846031823,3.2,181.66,181.57,117.78]
[1753846032422,3.2,181.6,181.57,117.78]
[1753846032819,3.2,181.6,181.55,3.22]
[1753846033718,124.0,181.67,181.57,3.22]
[1753846033920,3.2,181.65,181.57,3.22]
[1753846034222,3.2,181.6,181.57,8.7281]
[1753846034423,3.2,181.6,181.57,3.22]
[1753846034722,3.2,181.66,181.54,3.22]
[1753846034925,4.01959023,181.65,181.54,3.22]
[1753846035122,7.22033704,181.64,181.54,3.22]
[1753846035419,3.2,181.64,181.54,3.22]
[1753846035622,3.2,181.69,181.63,3.22]
[1753846035820,3.2,181.67,181.63,3.22]
[1753846036015,3.2,181.66,181.63,3.22]
[1753846036214,3.2,181.68,181.63,3.22]
[1753846036422,3.2,181.71,181.63,3.22]
[1753846036624,4.01570067,181.7,181.63,3.22]
[1753846036815,3.2,181.7,181.69,3.22]
[1753846037018,7.21571629,181.7,181.67,3.22]
[1753846037222,3.2,181.68,181.67,3.22]
[1753846037423,3.2,181.72,181.6,3.22]
[1753846037624,3.2,181.7,181.6,3.22]
[1753846037823,4.01633314,181.69,181.68,5.5047]
[1753846038026,7.21633314,181.69,181.6,3.22]
[1753846038328,4.01551044,181.68,181.67,5.5052]
[1753846038536,7.21551044,181.68,181.67,5.5052]
[1753846039021,4.01551044,181.68,181.67,8.7252]
[1753846041727,7.07551044,181.68,181.67,8.7252]
[1753846041928,7.07551044,181.68,181.67,5.5052]
[1753846042325,3.06,181.68,181.67,5.5052]
[1753846042627,3.06,181.68,181.67,8.5052]
[1753846043830,3.06,181.7,181.69,5.5047]
[1753846044228,3.06,181.72,181.69,8.5047]
[1753846044731,3.06,181.71,181.7,8.5043]
[1753846045233,3.06,181.71,181.7,5.5043]
[1753846045928,3.06,181.71,181.69,5.5047]
[1753846046126,3.06,181.69,181.66,3.0]
[1753846046429,3.06,181.68,181.66,3.0]
[1753846046629,3.06,181.68,181.67,5.5051]
[1753846047231,3.06,181.68,181.67,8.5051]
[1753846048133,3.06,181.69,181.68,8.5048]
[1753846049533,5.5036,181.73,181.69,5.5046]
[1753846049735,3.06,181.71,181.68,3.0]
[1753846049937,3.06,181.73,181.68,3.0]
[1753846050128,3.06,181.73,181.72,5.5038]
[1753846050331,3.06,181.73,181.72,8.5038]
[1753846053336,4.60315328,181.79,181.74,5.5031]
[1753846053633,3.06,181.77,181.75,3.0]
[1753846053930,7.06993597,181.76,181.75,3.0]
[1753846055239,7.06993597,181.76,181.75,8.5027]
[1753846056939,3.06,181.76,181.75,8.5027]
[1753846057142,3.06,181.76,181.64,158.10884752]
[1753846057143,117.78,181.83,181.65,11.0117]
[1753846057438,3.06,181.77,181.76,3.0]
[1753846057833,3.06,181.79,181.78,5.5019]
[1753846058032,3.06,181.84,181.68,3.0]
[1753846058235,3.06,181.82,181.72,3.0]
[1753846058430,3.06,181.82,181.73,3.0]
[1753846059033,3.06,181.82,181.8,5.5013]
[1753846059538,3.06,181.82,181.71,117.7]
[1753846059735,3.06,181.82,181.76,3.0]
[1753846061335,5.501,181.82,181.78,5.5018]
[1753846061534,3.06,181.81,181.78,5.5018]
[1753846062636,3.06,181.79,181.76,3.0]
[1753846063138,3.06,181.78,181.75,5.5027]
[1753846063738,3.06,181.78,181.75,8.5027]
[1753846064545,3.06,181.78,181.76,5.5026]
[1753846064941,3.06,181.78,181.75,8.5028]
[1753846065640,3.06,181.88,181.75,8.5027]
[1753846065842,3.99441816,181.87,181.75,8.5027]
[1753846066033,3.06,181.78,181.75,5.5027]
[1753846066239,3.06,181.78,181.73,3.0]
[1753846066738,3.06,181.78,181.75,5.5027]
[1753846066933,3.06,181.78,181.72,3.0]
[1753846067736,3.06,181.77,181.74,5.5031]
[1753846067941,3.06,181.77,181.74,8.5031]
[1753846068245,3.06,181.77,181.7,3.0]
[1753846069744,3.06,181.78,181.75,3.0]
[1753846071246,3.06,181.78,181.76,5.5024]
[1753846071944,3.21,181.87,181.7,3.23]
[1753846072144,3.99242751,181.86,181.7,3.23]
[1753846072345,3.21,181.85,181.7,3.23]
[1753846072546,5.5007,181.83,181.79,5.5015]
[1753846072847,3.21,181.82,181.79,8.7315]
[1753846074244,3.21,181.82,181.8,5.5013]
[1753846075750,3.21,181.81,181.78,8.7319]
[1753846076252,3.21,181.81,181.78,3.23]
[1753846076449,3.21,181.8,181.76,3.23]
[1753846076643,3.21,181.8,181.7,3.23]
[1753846076839,3.21,181.8,181.74,5.5031]
[1753846077040,5.5019,181.79,181.74,5.5031]
[1753846077350,3.21,181.78,181.71,3.23]
[1753846077549,3.21,181.88,181.76,3.23]
[1753846077745,3.21,181.8,181.77,3.23]
[1753846078351,5.5013,181.81,181.77,3.23]
[1753846078551,3.21,181.8,181.77,3.23]
[1753846079654,3.21,181.79,181.74,3.23]
[1753846080149,5.5022,181.78,181.73,5.5034]
[1753846080354,3.21,181.79,181.73,5.5034]
[1753846081356,5.5024,181.77,181.73,5.5034]
[1753846081555,3.21,181.75,181.74,3.23]
[1753846082854,3.21,181.75,181.74,8.7332]
[1753846083556,3.21,181.77,181.74,8.7332]
[1753846083758,3.21,181.76,181.75,3.23]
[1753846084259,3.21,181.86,181.75,3.23]
[1753846084452,3.21,181.84,181.75,3.23]
[1753846084653,3.21,181.82,181.74,5.503]
[1753846085359,3.21,181.82,181.74,8.733]
[1753846085555,5.502,181.79,181.74,5.503]
[1753846085756,3.21,181.78,181.75,3.23]
[1753846085961,3.21,181.78,181.74,8.733]
[1753846086258,3.21,181.76,181.75,3.23]